{"text_format":"1","workbook":"xlsx","n_sheets":3,"sheets":["QUOTATION","BoQ 01 ( Technical )","BoQ 01 ( Financial )"],"not_rendered":{"charts":0,"images":5,"macros":1,"external_links":1,"defined_names":10,"comments":0,"pivot_tables":0},"unopened":[],"bounds":{"document_bytes":16777216,"sheet_cells":100000,"rows_first":2000,"rows_last":500,"rows_between":2000,"halvings":0,"cell_chars":16384,"cell_head_chars":4096},"cells_cut":0,"cells_raw":0,"read":"whole","date_system":"1900"}

{"sheet":"QUOTATION","index":0,"n_rows":34,"n_cols":8,"rows_kept":34,"cut":false,"hidden":false,"merged":[[33,7,34,7],[9,2,9,4],[9,6,9,7],[21,2,21,3],[22,2,22,3],[23,2,23,5],[25,1,25,5],[25,6,25,7],[27,2,27,3],[28,2,28,3],[29,2,29,3],[30,2,30,3],[33,2,34,3],[7,2,8,4],[7,7,8,7],[1,1,1,7],[4,2,4,3],[4,4,4,6],[5,2,5,3],[5,4,5,6]]}
[null,"QUOTATION REQUEST - AL AMEEN FOR HUMANITARIAN SUPPORT "]
[null,"طلب عرض سعر"]
[]
[]
[null,null,"PR date:",null,{"$f":"CONCATENATE('[1]PR FORM'!H8,\"-\",'[1]PR FORM'!I8,\"-\",'[1]PR FORM'!J8)","v":"18-3-2024"},null,null,"تاريخ طلب الشراء:"]
[null,null,"\nReference of the PR:\n",null,"PR/ID95H23/World Vision1.01/GZT/PRO-HE/18-3-2024/Zar+Jan-1.01-03",null,null,"الرقم المرجعي لطلب الشراء:"]
[]
[null,null,"Quotation valid* from ....../......./........... until ....../......./...........",null,null,null,null,"صلاحية عرض السعر* من ....../......./........... إلى ....../......./..........."]
[]
[null,null,"*Please note that quotation cannot be valid for less than 3 days or more than 30 days. ",null,null,null," ملاحظة : عرض السعر يكون غير صالح لمدة أقل من ثلاثة أيام أو أكثر من 30 يوم."]
[null,null,"Company:",null,null,null,null,"الشركة/المؤسسة:"]
[]
[null,null,"Representative:",null,null,null,null,"اسم الشخص المسؤول:"]
[]
[null,null,"Tel:",null,null,null,null,"الهاتف:"]
[]
[null,null,"Email:",null,null,null,null,"البريد الالكتروني:"]
[]
[null,null,"Address:",null,null,null,null,"العنوان:"]
[]
[]
[null,null,"Items\nالعناصر",null,"Unit\nالواحدة","Quantity\nالكمية",{"$f":"\"Unit Price in \"&CurrnecyT&\" includes taxes and delivery\"&\"\nالسعر الإفرادي\"","v":"Unit Price in USD includes taxes and delivery\nالسعر الإفرادي"},{"$f":"\"Total Price in \"&CurrnecyT&\" includes taxes and delivery \"&\n\"السعر الإجمالي متضمناً الضريبة والتوصيل\"","v":"Total Price in USD includes taxes and delivery السعر الإجمالي متضمناً الضريبة والتوصيل"}]
[null,1,{"$f":"'[1]PR FORM'!B16","v":"Medicines and Medical Consumables - PHC (BoQ 01)"},null,{"$f":"'[1]PR FORM'!C16","v":"Lumpsum"},{"$f":"'[1]PR FORM'!D16*'[1]PR FORM'!E16","v":1}]
[null,null,"Total ( المجموع)"]
[]
[null," Comments/Technical specifications:",null,null,null,null,":التعليقات/المواصفات التقنية "]
[]
[null,null,"Total price (in letter)\n",null,null,null,null," السعر الكلي ( في هذا العرض) :"]
[null,null,"Available now:\n",null,null,null,null," كل العناصر متوفرة:"]
[null,null,"The requested quantity is entirely available\n",null,null,null,null," الكمية المطلوبة متوفرة :"]
[null,null,"Delivery date\n",null,null,null,null," تاريخ التسليم:"]
[]
[]
[null,null,"\nSupplier's signature and stamp: \n \n \n",null,null,null,null,"\n ختم وتوقيع المورد : "]

{"sheet":"BoQ 01 ( Technical )","index":1,"n_rows":94,"n_cols":10,"rows_kept":94,"cut":false,"hidden":false,"merged":[[0,3,0,9]]}
["BoQ 01",null,"PR/ID95H23/World Vision1.01/GZT/PRO-HE/18-3-2024/Zar+Jan-1.01-03","Technical"]
["SN","Category","Technical Specifications","Unit","Trade Name","Exp. Date\n(DD-MMM-YYYY)","Country of Origin","Package & Form","Dose","Company Or Agent Name"]
[{"$f":"IF(ISBLANK(B3),\"\",SUBTOTAL(103,$B$3:B3))","v":1},"Medicines","Acetylsalicylic Acid 100Mg","TABLET"]
[{"$f":"IF(ISBLANK(B4),\"\",SUBTOTAL(103,$B$3:B4))","v":2},"Medicines","Amlodipine 5Mg","TABLET"]
[{"$f":"IF(ISBLANK(B5),\"\",SUBTOTAL(103,$B$3:B5))","v":3},"Medicines","Amoxicillin 250 Syrup","BOTTLE"]
[{"$f":"IF(ISBLANK(B6),\"\",SUBTOTAL(103,$B$3:B6))","v":4},"Medicines","Amoxicillin 500Mg","TABLET"]
[{"$f":"IF(ISBLANK(B7),\"\",SUBTOTAL(103,$B$3:B7))","v":5},"Medicines","Amoxicillin+ Clavulanic Acid Syrup 228Mg-70Ml","BOTTLE"]
[{"$f":"IF(ISBLANK(B8),\"\",SUBTOTAL(103,$B$3:B8))","v":6},"Medicines","Amoxicillin+ Clavulanic Acid Syrup 400Mg+57Mg- 70Ml","BOTTLE"]
[{"$f":"IF(ISBLANK(B9),\"\",SUBTOTAL(103,$B$3:B9))","v":7},"Medicines","Amoxicillin+ Clavulanic Acid Tablet 1. G","TABLET"]
[{"$f":"IF(ISBLANK(B10),\"\",SUBTOTAL(103,$B$3:B10))","v":8},"Medicines","Atorvastatin 20Mg","TABLET"]
[{"$f":"IF(ISBLANK(B11),\"\",SUBTOTAL(103,$B$3:B11))","v":9},"Medicines","Atorvastatin 40Mg","TABLET"]
[{"$f":"IF(ISBLANK(B12),\"\",SUBTOTAL(103,$B$3:B12))","v":10},"Medicines","Azithromycin 200Mg/5Ml Syrup","BOTTLE"]
[{"$f":"IF(ISBLANK(B13),\"\",SUBTOTAL(103,$B$3:B13))","v":11},"Medicines","Azithromycin 500Mg ","TABLET"]
[{"$f":"IF(ISBLANK(B14),\"\",SUBTOTAL(103,$B$3:B14))","v":12},"Medicines","Betamethasone Valerate 0.1% 15G Cream","TUBE"]
[{"$f":"IF(ISBLANK(B15),\"\",SUBTOTAL(103,$B$3:B15))","v":13},"Medicines","Bisoprolol 5Mg","TABLET"]
[{"$f":"IF(ISBLANK(B16),\"\",SUBTOTAL(103,$B$3:B16))","v":14},"Medicines","Calcium+Vit D3 ","TABLET"]
[{"$f":"IF(ISBLANK(B17),\"\",SUBTOTAL(103,$B$3:B17))","v":15},"Medicines","Cefixime 100 Mg Syrup","BOTTLE"]
[{"$f":"IF(ISBLANK(B18),\"\",SUBTOTAL(103,$B$3:B18))","v":16},"Medicines","Cefixime 400 Mg ","TABLET"]
[{"$f":"IF(ISBLANK(B19),\"\",SUBTOTAL(103,$B$3:B19))","v":17},"Medicines","Ceftriaxone 1000 Mg","VIAL"]
[{"$f":"IF(ISBLANK(B20),\"\",SUBTOTAL(103,$B$3:B20))","v":18},"Medicines","Ciprofloxacin 500 ","TABLET"]
[{"$f":"IF(ISBLANK(B21),\"\",SUBTOTAL(103,$B$3:B21))","v":19},"Medicines","Clopidogrel 75Mg ","TABLET"]
[{"$f":"IF(ISBLANK(B22),\"\",SUBTOTAL(103,$B$3:B22))","v":20},"Medicines","deazebam","AMPOULE"]
[{"$f":"IF(ISBLANK(B23),\"\",SUBTOTAL(103,$B$3:B23))","v":21},"Medicines","Dexamethasone 8mg/ml 2 ml ","AMPOULE"]
[{"$f":"IF(ISBLANK(B24),\"\",SUBTOTAL(103,$B$3:B24))","v":22},"Medicines","Diclofenac Sodium 75 Mg","AMPOULE"]
[{"$f":"IF(ISBLANK(B25),\"\",SUBTOTAL(103,$B$3:B25))","v":23},"Medicines","Enalapril maleate 5Mg","TABLET"]
[{"$f":"IF(ISBLANK(B26),\"\",SUBTOTAL(103,$B$3:B26))","v":24},"Medicines","EPINEPHRINE (adrenaline) tartrate, eq.1mg/mL base, IM inject., 1mL","AMPOULE"]
[{"$f":"IF(ISBLANK(B27),\"\",SUBTOTAL(103,$B$3:B27))","v":25},"Medicines","Folic Acid 5Mg","TABLET"]
[{"$f":"IF(ISBLANK(B28),\"\",SUBTOTAL(103,$B$3:B28))","v":26},"Medicines","Gliclazide 30Mg","TABLET"]
[{"$f":"IF(ISBLANK(B29),\"\",SUBTOTAL(103,$B$3:B29))","v":27},"Medicines","Gliclazide 80Mg","TABLET"]
[{"$f":"IF(ISBLANK(B30),\"\",SUBTOTAL(103,$B$3:B30))","v":28},"Medicines","HYDROCORTISONE  1%  cream, topical 20mg"," CREAM"]
[{"$f":"IF(ISBLANK(B31),\"\",SUBTOTAL(103,$B$3:B31))","v":29},"Medicines","Hyoscine N-Butyl Bromide 10 Mg","AMPOULE"]
[{"$f":"IF(ISBLANK(B32),\"\",SUBTOTAL(103,$B$3:B32))","v":30},"Medicines","Ibuprofen 100mg/5ml Syrup","BOTTLE"]
[{"$f":"IF(ISBLANK(B33),\"\",SUBTOTAL(103,$B$3:B33))","v":31},"Medicines","Ibuprofen 400Mg","TABLET"]
[{"$f":"IF(ISBLANK(B34),\"\",SUBTOTAL(103,$B$3:B34))","v":32},"Medicines","Lansoprazole 30Mg 14capsule","CAPSULE"]
[{"$f":"IF(ISBLANK(B35),\"\",SUBTOTAL(103,$B$3:B35))","v":33},"Medicines","Levonorgesterl+Ethynilestradyol 150Mcg + 30Mcg","TABLET"]
[{"$f":"IF(ISBLANK(B36),\"\",SUBTOTAL(103,$B$3:B36))","v":34},"Medicines","lidocaine 2%","VIAL"]
[{"$f":"IF(ISBLANK(B37),\"\",SUBTOTAL(103,$B$3:B37))","v":35},"Medicines","Loratadine 10Mg ","TABLET"]
[{"$f":"IF(ISBLANK(B38),\"\",SUBTOTAL(103,$B$3:B38))","v":36},"Medicines","Losartan 50Mg+Hydrochlorthiazide 12.5","TABLET"]
[{"$f":"IF(ISBLANK(B39),\"\",SUBTOTAL(103,$B$3:B39))","v":37},"Medicines","Metformin Hcl 1000Mg","TABLET"]
[{"$f":"IF(ISBLANK(B40),\"\",SUBTOTAL(103,$B$3:B40))","v":38},"Medicines","Metformin Hcl 500Mg","TABLET"]
[{"$f":"IF(ISBLANK(B41),\"\",SUBTOTAL(103,$B$3:B41))","v":39},"Medicines","Methylergometrine maleate 0.2mg/ml, 1ml inj","AMPOULE"]
[{"$f":"IF(ISBLANK(B42),\"\",SUBTOTAL(103,$B$3:B42))","v":40},"Medicines","Metronidazole 500Mg","TABLET"]
[{"$f":"IF(ISBLANK(B43),\"\",SUBTOTAL(103,$B$3:B43))","v":41},"Medicines","Metronidazole 500Mg + Miconazole vaginal supp","VAGINAL"]
[{"$f":"IF(ISBLANK(B44),\"\",SUBTOTAL(103,$B$3:B44))","v":42},"Medicines","misoprostol 200mcg","TABLET"]
[{"$f":"IF(ISBLANK(B45),\"\",SUBTOTAL(103,$B$3:B45))","v":43},"Medicines","Ondansterone 8Mg amp","AMPOULE"]
[{"$f":"IF(ISBLANK(B46),\"\",SUBTOTAL(103,$B$3:B46))","v":44},"Medicines","Ondansterone 8Mg tab","TABLET"]
[{"$f":"IF(ISBLANK(B47),\"\",SUBTOTAL(103,$B$3:B47))","v":45},"Medicines","Oxytocin 10 IU/ml inj *","AMPOULE"]
[{"$f":"IF(ISBLANK(B48),\"\",SUBTOTAL(103,$B$3:B48))","v":46},"Medicines","Paracetamol 120Mg/5ml Syrup","BOTTLE"]
[{"$f":"IF(ISBLANK(B49),\"\",SUBTOTAL(103,$B$3:B49))","v":47},"Medicines","Paracetamol 300Mg + Chlorezoxazone 250Mg tab","TABLET"]
[{"$f":"IF(ISBLANK(B50),\"\",SUBTOTAL(103,$B$3:B50))","v":48},"Medicines","Paracetamol 500Mg","TABLET"]
[{"$f":"IF(ISBLANK(B51),\"\",SUBTOTAL(103,$B$3:B51))","v":49},"Medicines","parasetamol 10mg /ml","flakon"]
[{"$f":"IF(ISBLANK(B52),\"\",SUBTOTAL(103,$B$3:B52))","v":50},"Medicines","Salbutamol 2.5mg/2.5ml respirator solution (nebules)","Ampule"]
[{"$f":"IF(ISBLANK(B53),\"\",SUBTOTAL(103,$B$3:B53))","v":51},"Medicines","SULFADIAZINE SILVER, 1%, cream, sterile, 40 g","TUBE"]
[{"$f":"IF(ISBLANK(B54),\"\",SUBTOTAL(103,$B$3:B54))","v":52},"Medicines","Vitamin K1 (phytomenadione) 1mg/ml, 1ml inj "," AMPULE"]
[{"$f":"IF(ISBLANK(B55),\"\",SUBTOTAL(103,$B$3:B55))","v":53},"Medical Consumables","11 cm chart paper","Piece"]
[{"$f":"IF(ISBLANK(B56),\"\",SUBTOTAL(103,$B$3:B56))","v":54},"Medical Consumables","Alkaline Glutaraldaehyde 2.4 % bottle 5L (Sidex)","Box"]
[{"$f":"IF(ISBLANK(B57),\"\",SUBTOTAL(103,$B$3:B57))","v":55},"Medical Consumables","COMPRESS, GAUZE, 10 x 10 cm, Non sterile ","Piece"]
[{"$f":"IF(ISBLANK(B58),\"\",SUBTOTAL(103,$B$3:B58))","v":56},"Medical consumables","COMPRESS, GAUZE, 10 x 10 cm, sterile ","Piece"]
[{"$f":"IF(ISBLANK(B59),\"\",SUBTOTAL(103,$B$3:B59))","v":57},"Medical Consumables","COMPRESS, PARAFFIN, 10 x 10 cm, sterile","Piece"]
[{"$f":"IF(ISBLANK(B60),\"\",SUBTOTAL(103,$B$3:B60))","v":58},"Medical consumables","COTTON WOOL 500g, roll, non-sterile","Box"]
[{"$f":"IF(ISBLANK(B61),\"\",SUBTOTAL(103,$B$3:B61))","v":59},"Medical Consumables","Dextrose (glucose) 5% in water for IV infusion 500 ml without set","Box"]
[{"$f":"IF(ISBLANK(B62),\"\",SUBTOTAL(103,$B$3:B62))","v":60},"Medical Consumables","Elastic bandages 10cm","Piece"]
[{"$f":"IF(ISBLANK(B63),\"\",SUBTOTAL(103,$B$3:B63))","v":61},"Medical Consumables","Ethanol 70% 5L bottle","Box"]
[{"$f":"IF(ISBLANK(B64),\"\",SUBTOTAL(103,$B$3:B64))","v":62},"Medical Consumables","GAUZE bandages 10cm","Set"]
[{"$f":"IF(ISBLANK(B65),\"\",SUBTOTAL(103,$B$3:B65))","v":63},"Medical Consumables","INFUSION SET, min. 150cm, with air intake and inj. site","Set"]
[{"$f":"IF(ISBLANK(B66),\"\",SUBTOTAL(103,$B$3:B66))","v":64},"Medical Consumables","IV CANNULA, G 20, 1.0 x 33 mm, teflon, with inj. site, pink - 100 piece box","Bag"]
[{"$f":"IF(ISBLANK(B67),\"\",SUBTOTAL(103,$B$3:B67))","v":65},"Medical Consumables","IV CANNULA, G 22, 0.9 x 25 mm, teflon, with inj. site, blue - 100 piece box","Set"]
[{"$f":"IF(ISBLANK(B68),\"\",SUBTOTAL(103,$B$3:B68))","v":66},"Medical Consumables","large latex gloves box 100 pairs","Box"]
[{"$f":"IF(ISBLANK(B69),\"\",SUBTOTAL(103,$B$3:B69))","v":67},"Medical Consumables","Large latex gloves pairs - Surgical","Piece"]
[{"$f":"IF(ISBLANK(B70),\"\",SUBTOTAL(103,$B$3:B70))","v":68},"Medical Consumables","Medical suction tubes","Box"]
[{"$f":"IF(ISBLANK(B71),\"\",SUBTOTAL(103,$B$3:B71))","v":69},"Medical Consumables","Medium latex gloves box 100 pairs","Box"]
[{"$f":"IF(ISBLANK(B72),\"\",SUBTOTAL(103,$B$3:B72))","v":70},"Medical Consumables","Medium latex gloves pairs - Surgical","Piece"]
[{"$f":"IF(ISBLANK(B73),\"\",SUBTOTAL(103,$B$3:B73))","v":71},"Medical Consumables","Mefix plaster 10cm x 10m","Box"]
[{"$f":"IF(ISBLANK(B74),\"\",SUBTOTAL(103,$B$3:B74))","v":72},"Medical consumables ","NG tube 6 FR","Piece"]
[{"$f":"IF(ISBLANK(B75),\"\",SUBTOTAL(103,$B$3:B75))","v":73},"Medical Consumables","NG tube 8 FR","Piece"]
[{"$f":"IF(ISBLANK(B76),\"\",SUBTOTAL(103,$B$3:B76))","v":74},"Medical consumables","Nylone suture 3/0 - 12 pieces box","roller"]
[{"$f":"IF(ISBLANK(B77),\"\",SUBTOTAL(103,$B$3:B77))","v":75},"Medical Consumables","Nylone suture 4/0 - 12 pieces box","KG"]
[{"$f":"IF(ISBLANK(B78),\"\",SUBTOTAL(103,$B$3:B78))","v":76},"Medical consumables","Nylone suture 5/0 - 12 pieces box","KG"]
[{"$f":"IF(ISBLANK(B79),\"\",SUBTOTAL(103,$B$3:B79))","v":77},"Medical consumables","Plaster zinc oxide 2.5 cm x 5 m","Box"]
[{"$f":"IF(ISBLANK(B80),\"\",SUBTOTAL(103,$B$3:B80))","v":78},"Medical consumables","Plastic & Metal Splints","Box"]
[{"$f":"IF(ISBLANK(B81),\"\",SUBTOTAL(103,$B$3:B81))","v":79},"Medical consumables","Povidone 10% 1 L bottle","Box"]
[{"$f":"IF(ISBLANK(B82),\"\",SUBTOTAL(103,$B$3:B82))","v":80},"Medical consumables","SILK PLASTER ROLL 10m x 2.5cm","Box"]
[{"$f":"IF(ISBLANK(B83),\"\",SUBTOTAL(103,$B$3:B83))","v":81},"Medical Consumables","Silk suture 3/0 - 12 pieces box","Piece"]
[{"$f":"IF(ISBLANK(B84),\"\",SUBTOTAL(103,$B$3:B84))","v":82},"Medical Consumables","Silk suture 4/0 - 12 pieces box","Piece"]
[{"$f":"IF(ISBLANK(B85),\"\",SUBTOTAL(103,$B$3:B85))","v":83},"Medical Consumables","Silk suture 5/0 - 12 pieces box","Box"]
[{"$f":"IF(ISBLANK(B86),\"\",SUBTOTAL(103,$B$3:B86))","v":84},"Medical Consumables","Small latex gloves box 100 pairs","Box"]
[{"$f":"IF(ISBLANK(B87),\"\",SUBTOTAL(103,$B$3:B87))","v":85},"Medical consumables","Sodium chloride 0.9%  for IV infusion 500ml with nipple (no set)","bags"]
[{"$f":"IF(ISBLANK(B88),\"\",SUBTOTAL(103,$B$3:B88))","v":86},"Medical Consumables","SYRINGE, 1ml, disposable 100 piece box","Box"]
[{"$f":"IF(ISBLANK(B89),\"\",SUBTOTAL(103,$B$3:B89))","v":87},"Medical Consumables","SYRINGE, 3ml, disposable 100 piece box","Box"]
[{"$f":"IF(ISBLANK(B90),\"\",SUBTOTAL(103,$B$3:B90))","v":88},"Medical consumables","SYRINGE, 5ml, disposable 100 piece box","Box"]
[{"$f":"IF(ISBLANK(B91),\"\",SUBTOTAL(103,$B$3:B91))","v":89},"Medical consumables","TONGUE DEPRESSOR, wood, non sterile 100 piece box","Box"]
[{"$f":"IF(ISBLANK(B92),\"\",SUBTOTAL(103,$B$3:B92))","v":90},"Medical consumables","Ultrasound Gel 1 L bottle","Bottle"]
["Supplier Name | اسم المزود"]
["Supplier & Signature | توقيع وختم المزود"]

{"sheet":"BoQ 01 ( Financial )","index":2,"n_rows":95,"n_cols":7,"rows_kept":95,"cut":false,"hidden":false,"merged":[[0,3,0,6]]}
["BoQ 01",null,"PR/ID95H23/World Vision1.01/GZT/PRO-HE/18-3-2024/Zar+Jan-1.01-03","Financial"]
["SN","Category","Technical Specifications","Unit","Quantity","UNIT PRICE","TOTAL PRICE"]
[{"$f":"IF(ISBLANK(B3),\"\",SUBTOTAL(103,$B$3:B3))","v":1},"Medicines","Acetylsalicylic Acid 100Mg","TABLET",14000,null,{"$f":"Table145[[#This Row],[Quantity]]*Table145[[#This Row],[UNIT PRICE]]","v":0}]
[{"$f":"IF(ISBLANK(B4),\"\",SUBTOTAL(103,$B$3:B4))","v":2},"Medicines","Amlodipine 5Mg","TABLET",6000,null,{"$f":"Table145[[#This Row],[Quantity]]*Table145[[#This Row],[UNIT PRICE]]","v":0}]
[{"$f":"IF(ISBLANK(B5),\"\",SUBTOTAL(103,$B$3:B5))","v":3},"Medicines","Amoxicillin 250 Syrup","BOTTLE",800,null,{"$f":"Table145[[#This Row],[Quantity]]*Table145[[#This Row],[UNIT PRICE]]","v":0}]
[{"$f":"IF(ISBLANK(B6),\"\",SUBTOTAL(103,$B$3:B6))","v":4},"Medicines","Amoxicillin 500Mg","TABLET",18000,null,{"$f":"Table145[[#This Row],[Quantity]]*Table145[[#This Row],[UNIT PRICE]]","v":0}]
[{"$f":"IF(ISBLANK(B7),\"\",SUBTOTAL(103,$B$3:B7))","v":5},"Medicines","Amoxicillin+ Clavulanic Acid Syrup 228Mg-70Ml","BOTTLE",100,null,{"$f":"Table145[[#This Row],[Quantity]]*Table145[[#This Row],[UNIT PRICE]]","v":0}]
[{"$f":"IF(ISBLANK(B8),\"\",SUBTOTAL(103,$B$3:B8))","v":6},"Medicines","Amoxicillin+ Clavulanic Acid Syrup 400Mg+57Mg- 70Ml","BOTTLE",500,null,{"$f":"Table145[[#This Row],[Quantity]]*Table145[[#This Row],[UNIT PRICE]]","v":0}]
[{"$f":"IF(ISBLANK(B9),\"\",SUBTOTAL(103,$B$3:B9))","v":7},"Medicines","Amoxicillin+ Clavulanic Acid Tablet 1. G","TABLET",4000,null,{"$f":"Table145[[#This Row],[Quantity]]*Table145[[#This Row],[UNIT PRICE]]","v":0}]
[{"$f":"IF(ISBLANK(B10),\"\",SUBTOTAL(103,$B$3:B10))","v":8},"Medicines","Atorvastatin 20Mg","TABLET",7600,null,{"$f":"Table145[[#This Row],[Quantity]]*Table145[[#This Row],[UNIT PRICE]]","v":0}]
[{"$f":"IF(ISBLANK(B11),\"\",SUBTOTAL(103,$B$3:B11))","v":9},"Medicines","Atorvastatin 40Mg","TABLET",4000,null,{"$f":"Table145[[#This Row],[Quantity]]*Table145[[#This Row],[UNIT PRICE]]","v":0}]
[{"$f":"IF(ISBLANK(B12),\"\",SUBTOTAL(103,$B$3:B12))","v":10},"Medicines","Azithromycin 200Mg/5Ml Syrup","BOTTLE",200,null,{"$f":"Table145[[#This Row],[Quantity]]*Table145[[#This Row],[UNIT PRICE]]","v":0}]
[{"$f":"IF(ISBLANK(B13),\"\",SUBTOTAL(103,$B$3:B13))","v":11},"Medicines","Azithromycin 500Mg ","TABLET",840,null,{"$f":"Table145[[#This Row],[Quantity]]*Table145[[#This Row],[UNIT PRICE]]","v":0}]
[{"$f":"IF(ISBLANK(B14),\"\",SUBTOTAL(103,$B$3:B14))","v":12},"Medicines","Betamethasone Valerate 0.1% 15G Cream","TUBE",60,null,{"$f":"Table145[[#This Row],[Quantity]]*Table145[[#This Row],[UNIT PRICE]]","v":0}]
[{"$f":"IF(ISBLANK(B15),\"\",SUBTOTAL(103,$B$3:B15))","v":13},"Medicines","Bisoprolol 5Mg","TABLET",12000,null,{"$f":"Table145[[#This Row],[Quantity]]*Table145[[#This Row],[UNIT PRICE]]","v":0}]
[{"$f":"IF(ISBLANK(B16),\"\",SUBTOTAL(103,$B$3:B16))","v":14},"Medicines","Calcium+Vit D3 ","TABLET",4000,null,{"$f":"Table145[[#This Row],[Quantity]]*Table145[[#This Row],[UNIT PRICE]]","v":0}]
[{"$f":"IF(ISBLANK(B17),\"\",SUBTOTAL(103,$B$3:B17))","v":15},"Medicines","Cefixime 100 Mg Syrup","BOTTLE",140,null,{"$f":"Table145[[#This Row],[Quantity]]*Table145[[#This Row],[UNIT PRICE]]","v":0}]
[{"$f":"IF(ISBLANK(B18),\"\",SUBTOTAL(103,$B$3:B18))","v":16},"Medicines","Cefixime 400 Mg ","TABLET",2000,null,{"$f":"Table145[[#This Row],[Quantity]]*Table145[[#This Row],[UNIT PRICE]]","v":0}]
[{"$f":"IF(ISBLANK(B19),\"\",SUBTOTAL(103,$B$3:B19))","v":17},"Medicines","Ceftriaxone 1000 Mg","VIAL",400,null,{"$f":"Table145[[#This Row],[Quantity]]*Table145[[#This Row],[UNIT PRICE]]","v":0}]
[{"$f":"IF(ISBLANK(B20),\"\",SUBTOTAL(103,$B$3:B20))","v":18},"Medicines","Ciprofloxacin 500 ","TABLET",800,null,{"$f":"Table145[[#This Row],[Quantity]]*Table145[[#This Row],[UNIT PRICE]]","v":0}]
[{"$f":"IF(ISBLANK(B21),\"\",SUBTOTAL(103,$B$3:B21))","v":19},"Medicines","Clopidogrel 75Mg ","TABLET",2000,null,{"$f":"Table145[[#This Row],[Quantity]]*Table145[[#This Row],[UNIT PRICE]]","v":0}]
[{"$f":"IF(ISBLANK(B22),\"\",SUBTOTAL(103,$B$3:B22))","v":20},"Medicines","deazebam","AMPOULE",40,null,{"$f":"Table145[[#This Row],[Quantity]]*Table145[[#This Row],[UNIT PRICE]]","v":0}]
[{"$f":"IF(ISBLANK(B23),\"\",SUBTOTAL(103,$B$3:B23))","v":21},"Medicines","Dexamethasone 8mg/ml 2 ml ","AMPOULE",800,null,{"$f":"Table145[[#This Row],[Quantity]]*Table145[[#This Row],[UNIT PRICE]]","v":0}]
[{"$f":"IF(ISBLANK(B24),\"\",SUBTOTAL(103,$B$3:B24))","v":22},"Medicines","Diclofenac Sodium 75 Mg","AMPOULE",800,null,{"$f":"Table145[[#This Row],[Quantity]]*Table145[[#This Row],[UNIT PRICE]]","v":0}]
[{"$f":"IF(ISBLANK(B25),\"\",SUBTOTAL(103,$B$3:B25))","v":23},"Medicines","Enalapril maleate 5Mg","TABLET",8000,null,{"$f":"Table145[[#This Row],[Quantity]]*Table145[[#This Row],[UNIT PRICE]]","v":0}]
[{"$f":"IF(ISBLANK(B26),\"\",SUBTOTAL(103,$B$3:B26))","v":24},"Medicines","EPINEPHRINE (adrenaline) tartrate, eq.1mg/mL base, IM inject., 1mL","AMPOULE",280,null,{"$f":"Table145[[#This Row],[Quantity]]*Table145[[#This Row],[UNIT PRICE]]","v":0}]
[{"$f":"IF(ISBLANK(B27),\"\",SUBTOTAL(103,$B$3:B27))","v":25},"Medicines","Folic Acid 5Mg","TABLET",4000,null,{"$f":"Table145[[#This Row],[Quantity]]*Table145[[#This Row],[UNIT PRICE]]","v":0}]
[{"$f":"IF(ISBLANK(B28),\"\",SUBTOTAL(103,$B$3:B28))","v":26},"Medicines","Gliclazide 30Mg","TABLET",10000,null,{"$f":"Table145[[#This Row],[Quantity]]*Table145[[#This Row],[UNIT PRICE]]","v":0}]
[{"$f":"IF(ISBLANK(B29),\"\",SUBTOTAL(103,$B$3:B29))","v":27},"Medicines","Gliclazide 80Mg","TABLET",12000,null,{"$f":"Table145[[#This Row],[Quantity]]*Table145[[#This Row],[UNIT PRICE]]","v":0}]
[{"$f":"IF(ISBLANK(B30),\"\",SUBTOTAL(103,$B$3:B30))","v":28},"Medicines","HYDROCORTISONE  1%  cream, topical 20mg","CREAM",60,null,{"$f":"Table145[[#This Row],[Quantity]]*Table145[[#This Row],[UNIT PRICE]]","v":0}]
[{"$f":"IF(ISBLANK(B31),\"\",SUBTOTAL(103,$B$3:B31))","v":29},"Medicines","Hyoscine N-Butyl Bromide 10 Mg","AMPOULE",60,null,{"$f":"Table145[[#This Row],[Quantity]]*Table145[[#This Row],[UNIT PRICE]]","v":0}]
[{"$f":"IF(ISBLANK(B32),\"\",SUBTOTAL(103,$B$3:B32))","v":30},"Medicines","Ibuprofen 100mg/5ml Syrup","BOTTLE",500,null,{"$f":"Table145[[#This Row],[Quantity]]*Table145[[#This Row],[UNIT PRICE]]","v":0}]
[{"$f":"IF(ISBLANK(B33),\"\",SUBTOTAL(103,$B$3:B33))","v":31},"Medicines","Ibuprofen 400Mg","TABLET",8000,null,{"$f":"Table145[[#This Row],[Quantity]]*Table145[[#This Row],[UNIT PRICE]]","v":0}]
[{"$f":"IF(ISBLANK(B34),\"\",SUBTOTAL(103,$B$3:B34))","v":32},"Medicines","Lansoprazole 30Mg 14capsule","CAPSULE",22000,null,{"$f":"Table145[[#This Row],[Quantity]]*Table145[[#This Row],[UNIT PRICE]]","v":0}]
[{"$f":"IF(ISBLANK(B35),\"\",SUBTOTAL(103,$B$3:B35))","v":33},"Medicines","Levonorgesterl+Ethynilestradyol 150Mcg + 30Mcg","TABLET",3600,null,{"$f":"Table145[[#This Row],[Quantity]]*Table145[[#This Row],[UNIT PRICE]]","v":0}]
[{"$f":"IF(ISBLANK(B36),\"\",SUBTOTAL(103,$B$3:B36))","v":34},"Medicines","lidocaine 2%","VIAL",40,null,{"$f":"Table145[[#This Row],[Quantity]]*Table145[[#This Row],[UNIT PRICE]]","v":0}]
[{"$f":"IF(ISBLANK(B37),\"\",SUBTOTAL(103,$B$3:B37))","v":35},"Medicines","Loratadine 10Mg ","TABLET",600,null,{"$f":"Table145[[#This Row],[Quantity]]*Table145[[#This Row],[UNIT PRICE]]","v":0}]
[{"$f":"IF(ISBLANK(B38),\"\",SUBTOTAL(103,$B$3:B38))","v":36},"Medicines","Losartan 50Mg+Hydrochlorthiazide 12.5","TABLET",2400,null,{"$f":"Table145[[#This Row],[Quantity]]*Table145[[#This Row],[UNIT PRICE]]","v":0}]
[{"$f":"IF(ISBLANK(B39),\"\",SUBTOTAL(103,$B$3:B39))","v":37},"Medicines","Metformin Hcl 1000Mg","TABLET",30000,null,{"$f":"Table145[[#This Row],[Quantity]]*Table145[[#This Row],[UNIT PRICE]]","v":0}]
[{"$f":"IF(ISBLANK(B40),\"\",SUBTOTAL(103,$B$3:B40))","v":38},"Medicines","Metformin Hcl 500Mg","TABLET",8000,null,{"$f":"Table145[[#This Row],[Quantity]]*Table145[[#This Row],[UNIT PRICE]]","v":0}]
[{"$f":"IF(ISBLANK(B41),\"\",SUBTOTAL(103,$B$3:B41))","v":39},"Medicines","Methylergometrine maleate 0.2mg/ml, 1ml inj","AMPOULE",40,null,{"$f":"Table145[[#This Row],[Quantity]]*Table145[[#This Row],[UNIT PRICE]]","v":0}]
[{"$f":"IF(ISBLANK(B42),\"\",SUBTOTAL(103,$B$3:B42))","v":40},"Medicines","Metronidazole 500Mg","TABLET",4400,null,{"$f":"Table145[[#This Row],[Quantity]]*Table145[[#This Row],[UNIT PRICE]]","v":0}]
[{"$f":"IF(ISBLANK(B43),\"\",SUBTOTAL(103,$B$3:B43))","v":41},"Medicines","Metronidazole 500Mg + Miconazole vaginal supp","VAGINAL",200,null,{"$f":"Table145[[#This Row],[Quantity]]*Table145[[#This Row],[UNIT PRICE]]","v":0}]
[{"$f":"IF(ISBLANK(B44),\"\",SUBTOTAL(103,$B$3:B44))","v":42},"Medicines","misoprostol 200mcg","TABLET",120,null,{"$f":"Table145[[#This Row],[Quantity]]*Table145[[#This Row],[UNIT PRICE]]","v":0}]
[{"$f":"IF(ISBLANK(B45),\"\",SUBTOTAL(103,$B$3:B45))","v":43},"Medicines","Ondansterone 8Mg amp","AMPOULE",200,null,{"$f":"Table145[[#This Row],[Quantity]]*Table145[[#This Row],[UNIT PRICE]]","v":0}]
[{"$f":"IF(ISBLANK(B46),\"\",SUBTOTAL(103,$B$3:B46))","v":44},"Medicines","Ondansterone 8Mg tab","TABLET",1200,null,{"$f":"Table145[[#This Row],[Quantity]]*Table145[[#This Row],[UNIT PRICE]]","v":0}]
[{"$f":"IF(ISBLANK(B47),\"\",SUBTOTAL(103,$B$3:B47))","v":45},"Medicines","Oxytocin 10 IU/ml inj *","AMPOULE",40,null,{"$f":"Table145[[#This Row],[Quantity]]*Table145[[#This Row],[UNIT PRICE]]","v":0}]
[{"$f":"IF(ISBLANK(B48),\"\",SUBTOTAL(103,$B$3:B48))","v":46},"Medicines","Paracetamol 120Mg/5ml Syrup","BOTTLE",760,null,{"$f":"Table145[[#This Row],[Quantity]]*Table145[[#This Row],[UNIT PRICE]]","v":0}]
[{"$f":"IF(ISBLANK(B49),\"\",SUBTOTAL(103,$B$3:B49))","v":47},"Medicines","Paracetamol 300Mg + Chlorezoxazone 250Mg tab","TABLET",600,null,{"$f":"Table145[[#This Row],[Quantity]]*Table145[[#This Row],[UNIT PRICE]]","v":0}]
[{"$f":"IF(ISBLANK(B50),\"\",SUBTOTAL(103,$B$3:B50))","v":48},"Medicines","Paracetamol 500Mg","TABLET",42000,null,{"$f":"Table145[[#This Row],[Quantity]]*Table145[[#This Row],[UNIT PRICE]]","v":0}]
[{"$f":"IF(ISBLANK(B51),\"\",SUBTOTAL(103,$B$3:B51))","v":49},"Medicines","parasetamol 10mg /ml","flakon",80,null,{"$f":"Table145[[#This Row],[Quantity]]*Table145[[#This Row],[UNIT PRICE]]","v":0}]
[{"$f":"IF(ISBLANK(B52),\"\",SUBTOTAL(103,$B$3:B52))","v":50},"Medicines","Salbutamol 2.5mg/2.5ml respirator solution (nebules)","Ampule",400,null,{"$f":"Table145[[#This Row],[Quantity]]*Table145[[#This Row],[UNIT PRICE]]","v":0}]
[{"$f":"IF(ISBLANK(B53),\"\",SUBTOTAL(103,$B$3:B53))","v":51},"Medicines","SULFADIAZINE SILVER, 1%, cream, sterile, 40 g","TUBE",40,null,{"$f":"Table145[[#This Row],[Quantity]]*Table145[[#This Row],[UNIT PRICE]]","v":0}]
[{"$f":"IF(ISBLANK(B54),\"\",SUBTOTAL(103,$B$3:B54))","v":52},"Medicines","vit k1 1mg\\ml","AMPULE",100,null,{"$f":"Table145[[#This Row],[Quantity]]*Table145[[#This Row],[UNIT PRICE]]","v":0}]
[{"$f":"IF(ISBLANK(B55),\"\",SUBTOTAL(103,$B$3:B55))","v":53},"Medical Consumables","11 cm chart paper","Piece",12,null,{"$f":"Table145[[#This Row],[Quantity]]*Table145[[#This Row],[UNIT PRICE]]","v":0}]
[{"$f":"IF(ISBLANK(B56),\"\",SUBTOTAL(103,$B$3:B56))","v":54},"Medical Consumables","Alkaline Glutaraldaehyde 2.4 % bottle 5L (Sidex)","Box",2,null,{"$f":"Table145[[#This Row],[Quantity]]*Table145[[#This Row],[UNIT PRICE]]","v":0}]
[{"$f":"IF(ISBLANK(B57),\"\",SUBTOTAL(103,$B$3:B57))","v":55},"Medical Consumables","COMPRESS, GAUZE, 10 x 10 cm, Non sterile ","Piece",1000,null,{"$f":"Table145[[#This Row],[Quantity]]*Table145[[#This Row],[UNIT PRICE]]","v":0}]
[{"$f":"IF(ISBLANK(B58),\"\",SUBTOTAL(103,$B$3:B58))","v":56},"Medical consumables","COMPRESS, GAUZE, 10 x 10 cm, sterile ","Piece",1000,null,{"$f":"Table145[[#This Row],[Quantity]]*Table145[[#This Row],[UNIT PRICE]]","v":0}]
[{"$f":"IF(ISBLANK(B59),\"\",SUBTOTAL(103,$B$3:B59))","v":57},"Medical Consumables","COMPRESS, PARAFFIN, 10 x 10 cm, sterile","Piece",440,null,{"$f":"Table145[[#This Row],[Quantity]]*Table145[[#This Row],[UNIT PRICE]]","v":0}]
[{"$f":"IF(ISBLANK(B60),\"\",SUBTOTAL(103,$B$3:B60))","v":58},"Medical consumables","COTTON WOOL 500g, roll, non-sterile","Box",4,null,{"$f":"Table145[[#This Row],[Quantity]]*Table145[[#This Row],[UNIT PRICE]]","v":0}]
[{"$f":"IF(ISBLANK(B61),\"\",SUBTOTAL(103,$B$3:B61))","v":59},"Medical Consumables","Dextrose (glucose) 5% in water for IV infusion 500 ml without set","Box",40,null,{"$f":"Table145[[#This Row],[Quantity]]*Table145[[#This Row],[UNIT PRICE]]","v":0}]
[{"$f":"IF(ISBLANK(B62),\"\",SUBTOTAL(103,$B$3:B62))","v":60},"Medical Consumables","Elastic bandages 10cm","Piece",600,null,{"$f":"Table145[[#This Row],[Quantity]]*Table145[[#This Row],[UNIT PRICE]]","v":0}]
[{"$f":"IF(ISBLANK(B63),\"\",SUBTOTAL(103,$B$3:B63))","v":61},"Medical Consumables","Ethanol 70% 5L bottle","Box",4,null,{"$f":"Table145[[#This Row],[Quantity]]*Table145[[#This Row],[UNIT PRICE]]","v":0}]
[{"$f":"IF(ISBLANK(B64),\"\",SUBTOTAL(103,$B$3:B64))","v":62},"Medical Consumables","GAUZE bandages 10cm","Set",800,null,{"$f":"Table145[[#This Row],[Quantity]]*Table145[[#This Row],[UNIT PRICE]]","v":0}]
[{"$f":"IF(ISBLANK(B65),\"\",SUBTOTAL(103,$B$3:B65))","v":63},"Medical Consumables","INFUSION SET, min. 150cm, with air intake and inj. site","Set",120,null,{"$f":"Table145[[#This Row],[Quantity]]*Table145[[#This Row],[UNIT PRICE]]","v":0}]
[{"$f":"IF(ISBLANK(B66),\"\",SUBTOTAL(103,$B$3:B66))","v":64},"Medical Consumables","IV CANNULA, G 20, 1.0 x 33 mm, teflon, with inj. site, pink - 100 piece box","Bag",2,null,{"$f":"Table145[[#This Row],[Quantity]]*Table145[[#This Row],[UNIT PRICE]]","v":0}]
[{"$f":"IF(ISBLANK(B67),\"\",SUBTOTAL(103,$B$3:B67))","v":65},"Medical Consumables","IV CANNULA, G 22, 0.9 x 25 mm, teflon, with inj. site, blue - 100 piece box","Set",6,null,{"$f":"Table145[[#This Row],[Quantity]]*Table145[[#This Row],[UNIT PRICE]]","v":0}]
[{"$f":"IF(ISBLANK(B68),\"\",SUBTOTAL(103,$B$3:B68))","v":66},"Medical Consumables","large latex gloves box 100 pairs","Box",24,null,{"$f":"Table145[[#This Row],[Quantity]]*Table145[[#This Row],[UNIT PRICE]]","v":0}]
[{"$f":"IF(ISBLANK(B69),\"\",SUBTOTAL(103,$B$3:B69))","v":67},"Medical Consumables","Large latex gloves pairs - Surgical","Piece",20,null,{"$f":"Table145[[#This Row],[Quantity]]*Table145[[#This Row],[UNIT PRICE]]","v":0}]
[{"$f":"IF(ISBLANK(B70),\"\",SUBTOTAL(103,$B$3:B70))","v":68},"Medical Consumables","Medical suction tubes","Box",80,null,{"$f":"Table145[[#This Row],[Quantity]]*Table145[[#This Row],[UNIT PRICE]]","v":0}]
[{"$f":"IF(ISBLANK(B71),\"\",SUBTOTAL(103,$B$3:B71))","v":69},"Medical Consumables","Medium latex gloves box 100 pairs","Box",20,null,{"$f":"Table145[[#This Row],[Quantity]]*Table145[[#This Row],[UNIT PRICE]]","v":0}]
[{"$f":"IF(ISBLANK(B72),\"\",SUBTOTAL(103,$B$3:B72))","v":70},"Medical Consumables","Medium latex gloves pairs - Surgical","Piece",20,null,{"$f":"Table145[[#This Row],[Quantity]]*Table145[[#This Row],[UNIT PRICE]]","v":0}]
[{"$f":"IF(ISBLANK(B73),\"\",SUBTOTAL(103,$B$3:B73))","v":71},"Medical Consumables","Mefix plaster 10cm x 10m","Box",12,null,{"$f":"Table145[[#This Row],[Quantity]]*Table145[[#This Row],[UNIT PRICE]]","v":0}]
[{"$f":"IF(ISBLANK(B74),\"\",SUBTOTAL(103,$B$3:B74))","v":72},"Medical consumables ","NG tube 6 FR","Piece",40,null,{"$f":"Table145[[#This Row],[Quantity]]*Table145[[#This Row],[UNIT PRICE]]","v":0}]
[{"$f":"IF(ISBLANK(B75),\"\",SUBTOTAL(103,$B$3:B75))","v":73},"Medical Consumables","NG tube 8 FR","Piece",40,null,{"$f":"Table145[[#This Row],[Quantity]]*Table145[[#This Row],[UNIT PRICE]]","v":0}]
[{"$f":"IF(ISBLANK(B76),\"\",SUBTOTAL(103,$B$3:B76))","v":74},"Medical consumables","Nylone suture 3/0 - 12 pieces box","roller",8,null,{"$f":"Table145[[#This Row],[Quantity]]*Table145[[#This Row],[UNIT PRICE]]","v":0}]
[{"$f":"IF(ISBLANK(B77),\"\",SUBTOTAL(103,$B$3:B77))","v":75},"Medical Consumables","Nylone suture 4/0 - 12 pieces box","KG",12,null,{"$f":"Table145[[#This Row],[Quantity]]*Table145[[#This Row],[UNIT PRICE]]","v":0}]
[{"$f":"IF(ISBLANK(B78),\"\",SUBTOTAL(103,$B$3:B78))","v":76},"Medical consumables","Nylone suture 5/0 - 12 pieces box","KG",16,null,{"$f":"Table145[[#This Row],[Quantity]]*Table145[[#This Row],[UNIT PRICE]]","v":0}]
[{"$f":"IF(ISBLANK(B79),\"\",SUBTOTAL(103,$B$3:B79))","v":77},"Medical consumables","Plaster zinc oxide 2.5 cm x 5 m","Box",20,null,{"$f":"Table145[[#This Row],[Quantity]]*Table145[[#This Row],[UNIT PRICE]]","v":0}]
[{"$f":"IF(ISBLANK(B80),\"\",SUBTOTAL(103,$B$3:B80))","v":78},"Medical consumables","Plastic & Metal Splints","Box",4,null,{"$f":"Table145[[#This Row],[Quantity]]*Table145[[#This Row],[UNIT PRICE]]","v":0}]
[{"$f":"IF(ISBLANK(B81),\"\",SUBTOTAL(103,$B$3:B81))","v":79},"Medical consumables","Povidone 10% 1 L bottle","Box",12,null,{"$f":"Table145[[#This Row],[Quantity]]*Table145[[#This Row],[UNIT PRICE]]","v":0}]
[{"$f":"IF(ISBLANK(B82),\"\",SUBTOTAL(103,$B$3:B82))","v":80},"Medical consumables","SILK PLASTER ROLL 10m x 2.5cm","Box",80,null,{"$f":"Table145[[#This Row],[Quantity]]*Table145[[#This Row],[UNIT PRICE]]","v":0}]
[{"$f":"IF(ISBLANK(B83),\"\",SUBTOTAL(103,$B$3:B83))","v":81},"Medical Consumables","Silk suture 3/0 - 12 pieces box","Piece",4,null,{"$f":"Table145[[#This Row],[Quantity]]*Table145[[#This Row],[UNIT PRICE]]","v":0}]
[{"$f":"IF(ISBLANK(B84),\"\",SUBTOTAL(103,$B$3:B84))","v":82},"Medical Consumables","Silk suture 4/0 - 12 pieces box","Piece",8,null,{"$f":"Table145[[#This Row],[Quantity]]*Table145[[#This Row],[UNIT PRICE]]","v":0}]
[{"$f":"IF(ISBLANK(B85),\"\",SUBTOTAL(103,$B$3:B85))","v":83},"Medical Consumables","Silk suture 5/0 - 12 pieces box","Box",12,null,{"$f":"Table145[[#This Row],[Quantity]]*Table145[[#This Row],[UNIT PRICE]]","v":0}]
[{"$f":"IF(ISBLANK(B86),\"\",SUBTOTAL(103,$B$3:B86))","v":84},"Medical Consumables","Small latex gloves box 100 pairs","Box",4,null,{"$f":"Table145[[#This Row],[Quantity]]*Table145[[#This Row],[UNIT PRICE]]","v":0}]
[{"$f":"IF(ISBLANK(B87),\"\",SUBTOTAL(103,$B$3:B87))","v":85},"Medical consumables","Sodium chloride 0.9%  for IV infusion 500ml with nipple (no set)","bags",80,null,{"$f":"Table145[[#This Row],[Quantity]]*Table145[[#This Row],[UNIT PRICE]]","v":0}]
[{"$f":"IF(ISBLANK(B88),\"\",SUBTOTAL(103,$B$3:B88))","v":86},"Medical Consumables","SYRINGE, 1ml, disposable 100 piece box","Box",4,null,{"$f":"Table145[[#This Row],[Quantity]]*Table145[[#This Row],[UNIT PRICE]]","v":0}]
[{"$f":"IF(ISBLANK(B89),\"\",SUBTOTAL(103,$B$3:B89))","v":87},"Medical Consumables","SYRINGE, 3ml, disposable 100 piece box","Box",8,null,{"$f":"Table145[[#This Row],[Quantity]]*Table145[[#This Row],[UNIT PRICE]]","v":0}]
[{"$f":"IF(ISBLANK(B90),\"\",SUBTOTAL(103,$B$3:B90))","v":88},"Medical consumables","SYRINGE, 5ml, disposable 100 piece box","Box",8,null,{"$f":"Table145[[#This Row],[Quantity]]*Table145[[#This Row],[UNIT PRICE]]","v":0}]
[{"$f":"IF(ISBLANK(B91),\"\",SUBTOTAL(103,$B$3:B91))","v":89},"Medical consumables","TONGUE DEPRESSOR, wood, non sterile 100 piece box","Box",140,null,{"$f":"Table145[[#This Row],[Quantity]]*Table145[[#This Row],[UNIT PRICE]]","v":0}]
[{"$f":"IF(ISBLANK(B92),\"\",SUBTOTAL(103,$B$3:B92))","v":90},"Medical consumables","Ultrasound Gel 1 L bottle","Bottle",12,null,{"$f":"Table145[[#This Row],[Quantity]]*Table145[[#This Row],[UNIT PRICE]]","v":0}]
[null,null,"Total",null,null,null,{"$f":"SUBTOTAL(109,Table145[TOTAL PRICE])","v":0}]
["Supplier Name | اسم المزود"]
["Supplier & Signature | توقيع وختم المزود"]